fUST/lending_fUST_20260210
["ID","MTS","AMOUNT","RATE_DAILY","PERIOD"]
[404914182,1770673840199,-306.4985353,0.00088493,30]
[404914185,1770673840224,-605.6861769,0.00088493,30]
[404914189,1770673840250,-306.4985353,0.00088493,30]
[404914193,1770673840276,-379.8252637,0.00088493,30]
[404914196,1770673840300,-306.4985353,0.00088493,30]
[404914200,1770673840326,-605.6861769,0.00088493,30]
[404914203,1770673840351,-379.8252637,0.00088493,30]
[404914218,1770673840492,-185.953979,0.00088493,30]
[404914222,1770673840518,-605.6861769,0.00088493,30]
[404914226,1770673840545,-306.4985353,0.00088493,30]
[404914229,1770673840571,-379.8252637,0.00088493,30]
[404914233,1770673840599,-379.8252637,0.00088493,30]
[404914237,1770673840625,-306.4985353,0.00088493,30]
[404914240,1770673840653,-605.6861769,0.00088493,30]
[404914243,1770673840679,-379.8252637,0.00088493,30]
[404914247,1770673840706,-306.4985353,0.00088493,30]
[404914251,1770673840735,-379.8252637,0.00088493,30]
[404914255,1770673840765,-306.4985353,0.00088493,30]
[404914258,1770673840793,-306.4985353,0.00088493,30]
[404914262,1770673840824,-379.8252637,0.00088493,30]
[404914266,1770673840852,-185.953979,0.00088493,30]
[404914270,1770673840880,-185.953979,0.00088493,30]
[404914273,1770673840911,-605.6861769,0.00088493,30]
[404914277,1770673840939,-605.6861769,0.00088493,30]
[404914281,1770673840966,-605.6861769,0.00088493,30]
[404914285,1770673840994,-605.6861769,0.00088493,30]
[404914288,1770673841020,-605.6861769,0.00088493,30]
[404914292,1770673841047,-185.953979,0.00088493,30]
[404914295,1770673841075,-185.953979,0.00088493,30]
[404914298,1770673841101,-185.953979,0.00088493,30]
[404914302,1770673841126,-185.953979,0.00088493,30]
[404914305,1770673841151,-185.953979,0.00088493,30]
[404914309,1770673841177,-150.0,0.00089315,30]
[404914313,1770673841202,-15000.0,0.0009,120]
[404914316,1770673841228,-751.34,0.00090653,30]
[404914320,1770673841255,-450.81,0.0009212,120]
[404914323,1770673841280,-1000.0,0.0009315,2]
[404914326,1770673841304,-500.0,0.0009315,120]
[404914330,1770673841332,-500.0,0.0009315,120]
[404914334,1770673841359,-500.0,0.0009315,2]
[404914337,1770673841384,-587.87,0.0009315,120]
[404914341,1770673841409,-4538.91,0.0009315,21]
[404914344,1770673841435,-15915.96,0.0009315,120]
[404914348,1770673841460,-1571.51,0.0009315,20]
[404914352,1770673841486,-5029.25981516,0.00095,120]
[404914355,1770673841515,-1000.0,0.00096202,120]
[404914359,1770673841541,-901.61,0.00097452,30]
[404914363,1770673841569,-1290.15090188,0.00098,120]
[404914366,1770673841596,-515.21,0.00098127,120]
[404914370,1770673841622,-1000.0,0.0009863,2]
[404914373,1770673841651,-249.18220152,0.0009863,120]
[404914377,1770673841679,-513.21700504,0.0009863,120]
[404914380,1770673841706,-500.0,0.0009863,2]
[404914384,1770673841735,-587.87,0.0009863,120]
[404914388,1770673841760,-4538.91,0.0009863,21]
[404914391,1770673841786,-15915.96,0.0009863,120]
[404914395,1770673841815,-1571.51,0.0009863,20]
[404914399,1770673841840,-1288.0,0.00099,120]
[404914402,1770673841865,-3000.0,0.001,120]
[404914406,1770673841890,-259004.79866759,0.001,2]
[404914409,1770673841916,-295263.78392341,0.001,2]
[404914413,1770673841941,-1500.0,0.001,2]
[404914416,1770673841967,-1288.0,0.001,120]
[404914420,1770673841994,-4033.3059362,0.00101945,2]
[404914424,1770673842021,-401.0,0.00103896,120]
[404914427,1770673842047,-1000.0,0.00104109,2]
[404914431,1770673842077,-401.28,0.00104109,2]
[404914435,1770673842105,-587.87,0.00104109,120]
[404914438,1770673842132,-4538.91,0.00104109,21]
[404914442,1770673842160,-15915.96,0.00104109,120]
[404914446,1770673842187,-1571.51,0.00104109,20]
[404914449,1770673842216,-579.61,0.00104135,120]
[404914453,1770673842245,-1051.88,0.00104251,30]
[404914457,1770673842271,-1000.0,0.00109589,2]
[404914461,1770673842298,-587.87,0.00109589,120]
[404914464,1770673842324,-4538.91,0.00109589,21]
[404914468,1770673842351,-15915.96,0.00109589,120]
[404914471,1770673842379,-1571.51,0.00109589,20]
[404914475,1770673842406,-281.60192499,0.0011,120]
[404914479,1770673842436,-898.32,0.0011,30]
[404914487,1770673842514,500.0,0.00054794,120]
[404914493,1770673842561,500.0,0.00054794,120]
[404914497,1770673842593,500.0,0.00054794,8]
[404914506,1770673842733,535.5,0.00049591,60]
[404914508,1770673842776,612.0,0.00049591,60]
[404914509,1770673842833,228.06,0.0004199,30]
[404914510,1770673842876,503.44585803,0.00013699,2]
[404914515,1770673842919,918.0,0.00049591,60]
[404914521,1770673842969,5000.0,0.000231,2]
[404914525,1770673843004,765.0,0.00054794,120]
[404914533,1770673843073,535.0,0.00054794,120]
[404914538,1770673843115,261.98,0.00043923,10]
[404914545,1770673843178,344.0,0.00054794,120]
[404914549,1770673843210,218.6811,0.00035597,2]
[404914555,1770673843256,218.6811,0.00053395,2]
[404914559,1770673843288,151.0,0.00043905,2]
[404914564,1770673843333,151.0,0.00043905,2]
[404914569,1770673843371,166.43,0.00044,14]
[404914574,1770673843406,166.43,0.000466,14]
[404914578,1770673843437,151.0,0.00043905,2]
[404914580,1770673843450,-349.825,0.00043933,2]
[404914585,1770673843482,166.43,0.000495,14]
[404914589,1770673843514,166.43,0.000536,14]
[404914593,1770673843545,495.0,0.00059734,120]
[404914598,1770673843588,166.43,0.000584,14]
[404914603,1770673843621,166.43,0.000639,14]
[404914607,1770673843654,151.0,0.00043905,2]
[404914612,1770673843695,151.0,0.00043905,2]
[404914616,1770673843732,151.0,0.00043905,2]
[404914621,1770673843766,151.0,0.00043905,2]
[404914625,1770673843799,151.0,0.00043905,2]
[404914629,1770673843832,152.04,0.00043923,30]
[404914634,1770673843866,151.0,0.00043905,2]
[404914639,1770673843905,151.0,0.00043905,2]
[404914643,1770673843945,151.0,0.00043905,2]
[404914648,1770673843997,151.0,0.00043905,2]
[404914653,1770673844032,180.54959051,0.00043905,2]
[404914660,1770673844070,218.32,0.00043923,10]
[404914666,1770673844106,600.0,0.00044811,60]
[404914670,1770673844146,720.0,0.00049292,120]
[404914676,1770673844190,150.0,0.000466,120]
[404914680,1770673844230,864.0,0.00054221,120]
[404914684,1770673844263,177.0,0.000486,120]
[404914692,1770673844334,1000.0,0.00059644,120]
[404914698,1770673844374,204.0,0.000506,120]
[404914702,1770673844405,250.0,0.00035287,2]
[404914707,1770673844443,1000.0,0.00065608,120]
[404914712,1770673844486,322.0,0.00075679,120]
[404914717,1770673844521,244.0,0.00065608,120]
[404914722,1770673844554,231.0,0.000526,120]
[404914726,1770673844591,386.41,0.00081355,120]
[404914731,1770673844627,258.0,0.000546,120]
[404914736,1770673844666,1000.0,0.00072169,120]
[404914740,1770673844703,450.81,0.00087031,120]
[404914745,1770673844739,285.0,0.000566,120]
[404914750,1770673844779,492.0,0.00072169,120]
[404914754,1770673844810,531.5,0.0011,120]
[404914758,1770673844843,515.21,0.00092707,120]
[404914772,1770673844971,348.58663597,0.000586,120]
[404914788,1770673845153,579.61,0.00098383,120]
[404914804,1770673845314,1000.0,0.00079386,120]
[404914822,1770673845515,537.21,0.00104059,120]
[404914849,1770673845801,791.0,0.00079386,120]
[404914873,1770673845969,1098.1368252,0.00052144,2]
[404914906,1770673846212,151.0,0.00043933,7]
[404914910,1770673846251,1000.0,0.00087324,120]
[404914924,1770673846391,-1746.230728,0.00043933,2]
[404914938,1770673846530,151.0,0.00043933,7]
[404914942,1770673846559,-6139.95811676,0.00043933,2]
[404914971,1770673846866,-1000.0,0.00043933,2]
[404915084,1770673848241,1000.0,0.00087324,120]
[404915090,1770673848284,151.0,0.00043933,7]
[404915094,1770673848319,760.23,0.00043923,30]
[404915112,1770673848479,151.0,0.00043933,7]
[404915116,1770673848513,151.0,0.00043933,7]
[404915121,1770673848545,151.0,0.00043933,7]
[404915125,1770673848578,151.0,0.00043933,7]
[404915129,1770673848628,177.379601,0.00043933,120]
[404915134,1770673848665,151.0,0.00043933,7]
[404915138,1770673848698,177.379601,0.00043933,120]
[404915142,1770673848733,301.103236,0.00043933,7]
[404915147,1770673848765,177.379601,0.00043933,120]
[404915178,1770673849060,177.379601,0.00043933,120]
[404915207,1770673849338,177.379601,0.00043933,120]
[404915237,1770673849621,177.379601,0.00043933,120]
[404915265,1770673849885,5000.0,0.00024953,2]
[404915269,1770673849924,177.379601,0.00043933,120]
[404915296,1770673850172,177.379601,0.00043933,120]
[404915326,1770673850452,177.379601,0.00043933,120]
[404915343,1770673850752,177.379601,0.00043933,120]
[404915374,1770673851051,177.379601,0.00043933,120]
[404915404,1770673851328,177.379601,0.00043933,120]
[404915411,1770673851390,181.93,0.00043923,10]
[404915434,1770673851606,177.379601,0.00043933,120]
[404915461,1770673851881,177.379601,0.00043933,120]
[404915492,1770673852166,177.379601,0.00043933,120]
[404915522,1770673852451,177.379601,0.00043933,120]
[404915526,1770673852482,563.16,0.00044,14]
[404915557,1770673852782,177.379601,0.00043933,120]
[404915562,1770673852815,563.16,0.00099,30]
[404915587,1770673853058,177.379601,0.00043933,120]
[404915612,1770673853345,177.379601,0.00043933,120]
[404915623,1770673853634,177.379609,0.00043933,120]
[404915679,1770673854189,500.0,0.00027066,2]
[404915687,1770673854261,500.0,0.00026209,2]
[404915692,1770673854295,500.0,0.00026209,2]
[404915696,1770673854327,427.57351119,0.00026209,2]
[404915700,1770673854360,500.0,0.00026209,2]
[404915701,1770673854392,500.0,0.00026209,2]
[404915702,1770673854425,328.28451054,0.00049999,120]
[404915704,1770673854460,500.0,0.00026209,2]
[404915706,1770673854494,500.0,0.00026209,2]
[404915707,1770673854527,500.0,0.00026209,2]
[404915708,1770673854564,500.0,0.00026209,2]
[404915709,1770673854599,500.0,0.00026209,2]
[404915710,1770673854633,500.0,0.00026209,2]
[404915711,1770673854669,500.0,0.00026209,2]
[404915712,1770673854702,500.0,0.00026209,2]
[404915713,1770673854737,500.0,0.00026209,2]
[404915714,1770673854771,500.0,0.00026209,2]
[404915715,1770673854804,500.0,0.00026209,2]
[404915718,1770673854838,500.0,0.00026209,2]
[404915720,1770673854873,500.0,0.00026209,2]
[404915724,1770673854905,500.0,0.00026209,2]
[404915728,1770673854939,500.0,0.00026209,2]
[404915734,1770673854985,154.49263786,0.00026209,2]
[404915738,1770673855019,500.0,0.00026209,2]
[404915742,1770673855052,500.0,0.00030944,2]
[404915747,1770673855089,500.0,0.00026209,2]
[404915752,1770673855122,500.0,0.00026209,2]
[404915756,1770673855156,575.68661754,0.00049999,7]
[404915761,1770673855193,181.1795579,0.00026209,2]
[404915765,1770673855226,461.6102931,0.00049999,31]
[404915766,1770673855262,500.0,0.00039989,2]
[404915767,1770673855301,388.82,0.00039989,2]
[404915783,1770673857663,5000.0,0.00024953,2]
[404915784,1770673867330,500.0,0.00023792,2]
[404915785,1770673867568,500.0,0.0002621,120]
[404915787,1770673872552,5000.0,0.00030137,120]
[404915788,1770673880556,195.11149013,0.00030137,120]
[404915789,1770673884528,339.17368825,0.00013699,2]
[404915800,1770673892319,500.0,0.00013699,2]
[404915801,1770673894459,500.0,0.00013273,2]
[404915802,1770673894492,676.72341867,0.00013821,2]
[404915803,1770673894721,488.50905514,0.00013699,2]
[404915804,1770673894744,11.49094486,0.00013699,2]
[404915805,1770673894776,500.0,0.00014247,2]
[404915806,1770673895072,500.0,0.00013273,2]
[404915807,1770673896247,5000.0,0.00030137,120]
[404915808,1770673900446,511.85365811,0.00013699,2]
[404915809,1770673903417,500.0,0.00013699,2]
[404915810,1770673907606,500.0,0.00013699,2]
[404915811,1770673907657,500.0,0.00014247,2]
[404915812,1770673909584,500.0,0.00013699,2]
[404915813,1770673972118,211.44754782,0.0002,2]
[404915824,1770674108855,500.0,0.00013699,2]
[404915825,1770674120900,500.0,0.00013699,2]
[404915827,1770674168718,500.0,0.00013273,2]
[404915828,1770674168750,500.0,0.00013821,2]
[404915829,1770674195926,1000.0,0.00013821,2]
[404915830,1770674195984,500.0,0.00013273,2]
[404915831,1770674196943,646.1976893,0.00013699,2]
[404915832,1770674205212,500.6948387,0.00013699,2]
[404915833,1770674206241,500.0,0.00013699,2]
[404915834,1770674295403,424.2698748,0.00030137,120]
[404915839,1770674485602,548.35744713,0.00013273,2]
[404915840,1770674492811,326.45991419,0.00013699,2]
[404915841,1770674494208,500.0,0.00013699,2]
[404915843,1770674538267,-706.10059677,0.00023851,2]
[404915844,1770674538303,-3932.28684456,0.00023851,2]
[404915845,1770674538313,-706.10059677,0.00024092,2]
[404915846,1770674809130,-3649.60506194,0.00023612,2]
[404915847,1770674809150,-281.42395555,0.00023618,2]
[404915848,1770674809171,-867.52411511,0.00023718,2]
[404915849,1770674876365,5000.0,0.000231,2]
[404915850,1770674898731,5000.0,0.000231,2]
[404915851,1770674920995,5000.0,0.000231,2]
[404915852,1770674943081,5000.0,0.000231,2]
[404915853,1770674965646,5000.0,0.000231,2]
[404915854,1770674987380,5000.0,0.000231,2]
[404915855,1770675009172,2255.10238594,0.000231,2]
[404915856,1770675017434,5000.0,0.000231,2]
[404915888,1770675032406,-788.0,0.00023481,2]
[404915889,1770675032416,-462.73614538,0.00023718,2]
[404915890,1770675032428,-18.73824181,0.00023718,2]
[404915892,1770675032438,-300.0,0.00024132,2]
[404915894,1770675032447,-300.0,0.00024132,2]
[404915896,1770675032463,-190.9362577,0.00024132,2]
[404915900,1770675032510,-109.0637423,0.00024132,2]
[404915902,1770675032520,-300.0,0.00024132,2]
[404915903,1770675032529,-155.72170033,0.00024132,2]
[404915906,1770675032541,-649.85246094,0.00024132,2]
[404915908,1770675032553,-394.42583873,0.00024132,2]
[404915909,1770675032562,-162.03960009,0.0002458,2]
[404915910,1770675032572,-406.4393986,0.0002458,2]
[404915940,1770675038468,-93.5606014,0.0002458,2]
[404915942,1770675038478,-500.0,0.0002458,2]
[404915944,1770675038487,-500.0,0.0002458,2]
[404915946,1770675038497,-500.0,0.0002458,2]
[404915948,1770675038507,-500.0,0.0002458,2]
[404915949,1770675038516,-500.0,0.0002458,2]
[404915951,1770675038526,-500.0,0.0002458,2]
[404915953,1770675038536,-277.0211715,0.0002458,2]
[404915955,1770675038546,-500.0,0.0002458,2]
[404915957,1770675038557,-500.0,0.0002458,2]
[404915959,1770675038567,-500.0,0.0002458,2]
[404915961,1770675038577,-500.0,0.0002458,2]
[404915964,1770675038588,-500.0,0.0002458,2]
[404915966,1770675038598,-500.0,0.0002458,2]
[404915968,1770675038607,-500.0,0.0002458,2]
[404915970,1770675038617,-500.0,0.0002458,2]
[404915972,1770675038630,-500.0,0.0002458,2]
[404915974,1770675038641,-500.0,0.0002458,2]
[404915976,1770675038650,-500.0,0.0002458,2]
[404915977,1770675038661,-500.0,0.0002458,2]
[404915979,1770675038671,-500.0,0.0002458,2]
[404915981,1770675038681,-180.22654389,0.0002458,2]
[404915983,1770675038692,-500.0,0.0002458,2]
[404915985,1770675038702,-500.0,0.0002458,2]
[404915987,1770675038712,-500.0,0.0002458,2]
[404915989,1770675038722,-500.0,0.0002458,2]
[404915991,1770675038732,-500.0,0.0002458,2]
[404915993,1770675038741,-649.83513431,0.0002458,2]
[404915995,1770675038751,-500.0,0.0002458,2]
[404915997,1770675038760,-500.0,0.0002458,2]
[404915999,1770675038770,-500.0,0.0002458,2]
[404916001,1770675038779,-504.35152439,0.0002458,2]
[404916002,1770675038788,-500.0,0.0002458,2]
[404916004,1770675038798,-500.0,0.0002458,2]
[404916006,1770675038808,-500.0,0.0002458,2]
[404916008,1770675038818,-500.0,0.0002458,2]
[404916010,1770675038827,-500.0,0.0002458,2]
[404916012,1770675038837,-500.0,0.0002458,2]
[404916014,1770675038846,-500.0,0.0002458,2]
[404916016,1770675038855,-500.0,0.0002458,2]
[404916018,1770675038865,-500.0,0.0002458,2]
[404916020,1770675038876,-500.0,0.0002458,2]
[404916022,1770675038886,-500.0,0.0002458,2]
[404916023,1770675038895,-500.0,0.0002458,2]
[404916025,1770675038905,-214.19693345,0.0002458,2]
[404916027,1770675038916,-500.0,0.0002458,2]
[404916029,1770675038926,-500.0,0.0002458,2]
[404916031,1770675038935,-500.0,0.0002458,2]
[404916033,1770675038945,-500.0,0.0002458,2]
[404916034,1770675038954,-500.0,0.0002458,2]
[404916036,1770675038965,-500.0,0.0002458,2]
[404916038,1770675038975,-500.0,0.0002458,2]
[404916040,1770675038984,-500.0,0.0002458,2]
[404916042,1770675038994,-500.0,0.0002458,2]
[404916044,1770675039004,-500.0,0.0002458,2]
[404916046,1770675039012,-500.0,0.0002458,2]
[404916047,1770675039022,-500.0,0.0002458,2]
[404916049,1770675039032,-500.0,0.0002458,2]
[404916051,1770675039041,-500.0,0.0002458,2]
[404916053,1770675039050,-500.0,0.0002458,2]
[404916055,1770675039060,-500.0,0.0002458,2]
[404916057,1770675039069,-500.0,0.0002458,2]
[404916058,1770675039079,-500.0,0.0002458,2]
[404916060,1770675039091,-244.05311368,0.0002458,2]
[404916492,1770675045159,-3578.58935915,0.00023536,2]
[404916495,1770675047477,-1979.71125627,0.00023536,2]
[404916496,1770675047486,-238.90773072,0.00023536,2]
[404916497,1770675047497,-1410.93076605,0.00023536,2]
[404916498,1770675047658,-533.17257029,0.00023536,2]
[404916499,1770675047695,-2554.06,0.00023536,2]
[404916500,1770675067140,500.0,0.00013699,2]
[404916501,1770675067346,500.0,0.00013699,2]
[404916503,1770675091565,500.0,0.00013699,2]
[404916504,1770675093309,501.44248155,0.00013699,2]
[404916505,1770675094699,501.15046698,0.00013273,2]
[404916506,1770675099066,210.45223575,0.00013273,2]
[404916507,1770675249657,1000.0,0.00014247,2]
[404916508,1770675249708,1500.0,0.00014795,2]
[404916509,1770675249758,500.0,0.00013699,2]
[404916520,1770675300898,10000.0,0.00030137,120]
[404916521,1770675380271,500.0,0.00013699,2]
[404916524,1770675444657,500.0,0.00013699,2]
[404916525,1770675444699,202.16105981,0.00014795,2]
[404916526,1770675444767,1000.0,0.00014247,2]
[404916527,1770675611576,-3608.8956337,0.00023155,2]
[404916528,1770675611600,-781.0,0.00023155,2]
[404916529,1770675611622,-300.0,0.00023347,2]
[404916530,1770675611645,-300.0,0.00023347,2]
[404916531,1770675611669,-7709.72112268,0.00023348,2]
[404916532,1770675611691,-9024.9598888,0.00023449,2]
[404916533,1770675611714,-469.24581288,0.00023535,2]
[404916534,1770675611737,-821.22954836,0.00023536,2]
[404916535,1770675611759,-5558.30061542,0.00023536,2]
[404916536,1770675611894,-5558.30061542,0.00023536,2]
[404916537,1770675611918,-5563.85891604,0.00023536,2]
[404916538,1770675611942,-243.5381958,0.00023927,2]
[404916539,1770675611965,-222.70572493,0.00024577,2]
[404916540,1770675611990,-520.02517154,0.00024577,2]
[404916541,1770675612016,-500.0,0.00024577,2]
[404916542,1770675612041,-500.0,0.00024577,2]
[404916543,1770675612063,-21471.22080094,0.00024578,2]
[404916544,1770675612085,-224.98283345,0.00024579,2]
[404916545,1770675612107,-500.0,0.00024579,2]
[404916546,1770675612128,-500.0,0.00024582,2]
[404916547,1770675612149,-500.0,0.00024582,2]
[404916548,1770675612171,-500.0,0.00024582,2]
[404916549,1770675612194,-500.0,0.00024582,2]
[404916550,1770675612216,-420.0,0.00025335,2]
[404916551,1770675612240,-187.131379,0.00025769,2]
[404916552,1770675612268,-200.0,0.00027397,2]
[404916553,1770675612304,-203.63429413,0.00028013,2]
[404916554,1770675612334,-2317.38808396,0.00028449,2]
[404916555,1770675612361,-322.01963575,0.00029628,2]
[404916556,1770675612387,-208.57736393,0.00031,120]
[404916557,1770675630792,208.57736392,0.00031,120]
[404916558,1770675682250,500.0,0.00013699,2]
[404916559,1770675682313,209.53631024,0.00014247,2]
[404916560,1770675684684,500.0,0.00021918,2]
[404916561,1770675690067,215.67000002,0.00013699,2]
[404916562,1770675694747,304.73831557,0.00013699,2]
[404916567,1770675869831,5000.0,0.000231,2]
[404916568,1770675877665,5000.0,0.000231,2]
[404916569,1770675885636,5000.0,0.000231,2]
[404916570,1770675902965,500.0,0.00021918,2]
[404916571,1770675909069,1000.0,0.00014247,2]
[404916572,1770675909128,500.0,0.00013699,2]
[404916573,1770675909186,500.0,0.00014795,2]
[404916592,1770676100341,5000.0,0.000231,2]
[404916593,1770676108729,5000.0,0.000231,2]
[404916646,1770676123532,3273.78363285,0.000231,2]
[404916647,1770676131326,5000.0,0.000231,2]
[404916648,1770676149158,-1545.27279597,0.00023373,2]
[404916649,1770676153786,5000.0,0.000231,2]
[404916651,1770676175595,3356.27382689,0.000231,2]
[404916657,1770676203080,173.18089913,0.00014247,2]
[404916658,1770676203168,500.0,0.00013699,2]
[404916660,1770676218687,500.0,0.00013273,2]
[404916692,1770676231494,-3454.72720403,0.00023373,2]
[404916693,1770676231504,-786.0,0.00023373,2]
[404916694,1770676231617,-500.0,0.00023535,2]
[404916695,1770676231627,-150.0,0.00023728,2]
[404916696,1770676231635,-300.0,0.00023999,2]
[404916697,1770676231644,-300.0,0.00023999,2]
[404916698,1770676231654,-300.0,0.00023999,2]
[404916699,1770676231663,-1200.0,0.00023999,2]
[404916700,1770676231674,-1107.1750817,0.00024,60]
[404916701,1770676231686,-708.29118142,0.00024,60]
[404916762,1770676237558,-11800.26623848,0.00023988,2]
[404916764,1770676237568,-16325.69923307,0.00024,60]
[404916766,1770676237580,-7634.11459472,0.00024,60]
[404916768,1770676237589,-4984.1198505,0.00024088,2]
[404916770,1770676237598,-807.8954484,0.00024088,2]
[404916772,1770676237607,-286.8942012,0.00024088,2]
[404916774,1770676237617,-3753.11667952,0.0002465,2]
[404916776,1770676237628,-997.96770573,0.0002465,2]
[404916832,1770676241947,-34212.11901435,0.0002465,2]
[404916833,1770676241957,-993.26051239,0.00025,15]
[404916834,1770676241966,-17095.68223223,0.00025728,2]
[404916835,1770676241976,-177.0,0.00025728,2]
[404916836,1770676241986,-420.0,0.00026026,2]
[404916837,1770676241995,-420.0,0.00026026,2]
[404916838,1770676242004,-1680.0,0.00026145,2]
[404916839,1770676242014,-807.8954484,0.00027335,2]
[404916840,1770676242024,-204.0,0.00027728,2]
[404916841,1770676242034,-286.8942012,0.00027815,2]
[404916842,1770676242044,-293.99,0.00028098,10]
[404916843,1770676242172,-352.79,0.00028108,10]
[404916844,1770676242183,-4984.1198505,0.00028118,2]
[404916845,1770676242192,-587.0,0.00028223,2]
[404916846,1770676242201,-437.0,0.00028223,2]
[404916847,1770676242211,-2351.0,0.00028483,2]
[404916848,1770676242220,-155.41203235,0.00028535,2]
[404916849,1770676242230,-1000.0,0.00029371,30]
[404916850,1770676242239,-231.0,0.00029728,2]
[404916851,1770676242249,-8194.18509749,0.0003,60]
[404916852,1770676242258,-366.54172943,0.00030259,2]
[404916853,1770676242268,-807.8954484,0.00030582,2]
[404916854,1770676242277,-1104.0,0.00031029,2]
[404916855,1770676242286,-368.02244086,0.00031237,2]
[404916856,1770676242296,-286.8942012,0.00031542,2]
[404916857,1770676242305,-258.0,0.00031728,2]
[404916858,1770676242314,-250.0,0.00031974,2]
[404916859,1770676242324,-4984.1198505,0.00032148,2]
[404916860,1770676242333,-330.70260043,0.00032748,2]
[404916861,1770676242342,-595.26468078,0.00032748,2]
[404916862,1770676242351,-500.0,0.00032876,2]
[404916863,1770676242360,-2000.0,0.00032877,2]
[404916864,1770676242370,-2000.0,0.00032877,2]
[404916865,1770676242379,-2000.0,0.00032877,2]
[404916866,1770676242388,-910.02560737,0.00032877,2]
[404916867,1770676242398,-251.67,0.0003299,3]
[404916868,1770676242408,-755.03,0.0003299,3]
[404916869,1770676242417,-56039.15357912,0.00033,120]
[404916879,1770676244229,-256.2,0.00030299,2]
[404916892,1770676245774,-111.82244086,0.00030299,2]
[404916893,1770676245783,-139.18836874,0.0003299,10]
[404916894,1770676245797,-105.81163126,0.0003299,10]
[404916895,1770676245807,-654.90858617,0.00033,120]
[404916903,1770676338655,-182.59541706,0.0002413,2]
[404916923,1770676355385,-210.43385801,0.00023999,2]
[404916924,1770676355413,-150.0,0.0002589,2]
[404916925,1770676372148,-500.0,0.00027334,2]
[404916926,1770676372174,-200.0,0.00027397,2]
[404916927,1770676372205,-177.0,0.0002789,2]
[404916929,1770676388942,-500.0,0.00023999,2]
[404916930,1770676388973,-500.0,0.00023999,2]
[404916931,1770676418386,-500.0,0.00023999,2]
[404916932,1770676418416,-500.0,0.00023999,2]
[404916933,1770676447677,-677.53271256,0.00023759,2]
[404916936,1770676503751,301.54490954,0.00013699,2]
[404916937,1770676514036,500.0,0.00013273,2]
[404916945,1770676584601,358.77578659,0.00013699,2]
[404916946,1770676593733,234.23557593,0.00013699,2]
[404916947,1770676598160,591.30697883,0.00013273,2]
[404916960,1770676630387,287.47357518,0.00013273,2]
[404916961,1770676631974,5000.0,0.000231,2]
[404916965,1770676654347,5000.0,0.000231,2]
[404916966,1770676670127,1632.92220423,0.000231,2]
[404916967,1770676678177,5000.0,0.000231,2]
[404916970,1770676700243,834.23009962,0.000231,2]
[404917110,1770676869208,500.0,0.00013273,2]
[404917111,1770676869277,514.48934289,0.00013821,2]
[404917200,1770677348153,-789.0,0.00023548,2]
[404917201,1770677348176,-150.0,0.00023548,2]
[404917202,1770677348196,-277.19235256,0.00023576,2]